fUST/lending_fUST_20250623
["ID","MTS","AMOUNT","RATE_DAILY","PERIOD"]
[367138718,1750668645888,-958.78,0.00021917,2]
[367138720,1750668645897,-3494.84,0.00021917,2]
[367138722,1750668645906,-803.03,0.00021917,2]
[367138724,1750668645916,-460.0,0.00021917,2]
[367138727,1750668645927,-487.28631749,0.00021917,2]
[367138729,1750668645938,-5393.99,0.00021917,2]
[367138731,1750668645947,-2965.19,0.00021917,2]
[367138733,1750668645957,-460.0,0.00021917,2]
[367138735,1750668645967,-460.0,0.00021917,2]
[367138737,1750668645983,-460.0,0.00021917,2]
[367138739,1750668645997,-460.0,0.00021917,2]
[367138741,1750668646007,-624.12,0.00021917,2]
[367138743,1750668646015,-881.51,0.00021917,2]
[367138745,1750668646024,-460.0,0.00021917,2]
[367138747,1750668646034,-460.0,0.00021917,2]
[367138749,1750668646045,-625.94,0.00021917,2]
[367138751,1750668646054,-1036.85,0.00021917,2]
[367138753,1750668646063,-460.0,0.00021917,2]
[367138755,1750668646072,-460.0,0.00021917,2]
[367138757,1750668646082,-519.30897647,0.00021917,2]
[367138759,1750668646091,-855.07,0.00021917,2]
[367138761,1750668646100,-1527.02,0.00021917,2]
[367138763,1750668646111,-460.0,0.00021917,2]
[367138765,1750668646120,-274.91846312,0.00021917,2]
[367138767,1750668646129,-2473.62,0.00021917,2]
[367138769,1750668646138,-460.0,0.00021917,2]
[367138771,1750668646147,-460.0,0.00021917,2]
[367138773,1750668646156,-460.0,0.00021917,2]
[367138775,1750668646168,-610.84,0.00021917,2]
[367138783,1750668646229,-4999.28,0.00021917,2]
[367138785,1750668646238,-21969.91,0.00021917,2]
[367138787,1750668646248,-460.0,0.00021917,2]
[367138789,1750668646257,-151.0,0.00021917,2]
[367138791,1750668646266,-1371.96,0.00021917,2]
[367138793,1750668646275,-460.0,0.00021917,2]
[367138795,1750668646284,-460.0,0.00021917,2]
[367138797,1750668646294,-478.89,0.00021917,2]
[367138799,1750668646304,-2239.41,0.00021917,2]
[367138801,1750668646313,-2882.28,0.00021917,2]
[367138803,1750668646322,-460.0,0.00021917,2]
[367138805,1750668646331,-151.0,0.00021917,2]
[367138807,1750668646340,-461.05888693,0.00021917,2]
[367138809,1750668646349,-9200.65,0.00021917,2]
[367138810,1750668646360,-529.80427426,0.00021917,2]
[367138812,1750668646369,-460.0,0.00021917,2]
[367138814,1750668646378,-2287.98,0.00021917,2]
[367138816,1750668646387,-460.0,0.00021917,2]
[367138818,1750668646396,-460.0,0.00021917,2]
[367138820,1750668646406,-460.0,0.00021917,2]
[367138822,1750668646415,-5032.78,0.00021917,2]
[367138824,1750668646424,-460.0,0.00021917,2]
[367138826,1750668646433,-513.71,0.00021917,2]
[367138828,1750668646442,-500.0,0.00021917,2]
[367138830,1750668646451,-500.0,0.00021917,2]
[367138832,1750668646460,-500.0,0.00021917,2]
[367138834,1750668646469,-710.47,0.00021917,2]
[367138836,1750668646478,-500.0,0.00021917,2]
[367138838,1750668646489,-6850.57,0.00021917,2]
[367138840,1750668646499,-1055.739109,0.00021917,2]
[367138841,1750668646508,-607.68507989,0.00021917,2]
[367138842,1750668646517,-460.0,0.00021917,2]
[367138843,1750668646526,-153.164602,0.00021917,2]
[367138844,1750668646535,-550.58,0.00021917,2]
[367138845,1750668646544,-460.0,0.00021917,2]
[367138846,1750668646553,-2876.44,0.00021917,2]
[367138847,1750668646562,-460.0,0.00021917,2]
[367138848,1750668646571,-1055.739109,0.00021917,2]
[367138849,1750668646580,-3248.4,0.00021917,2]
[367138850,1750668646589,-460.0,0.00021917,2]
[367138851,1750668646597,-460.0,0.00021917,2]
[367138852,1750668646606,-460.0,0.00021917,2]
[367138853,1750668646616,-460.0,0.00021917,2]
[367138854,1750668646625,-460.0,0.00021917,2]
[367138855,1750668646634,-1440.61,0.00021917,2]
[367138856,1750668646643,-460.0,0.00021917,2]
[367138857,1750668646652,-1141.15,0.00021917,2]
[367138858,1750668646660,-1935.47,0.00021917,2]
[367138859,1750668646669,-460.0,0.00021917,2]
[367138860,1750668646679,-498.64,0.00021917,2]
[367138861,1750668646688,-698.86,0.00021917,2]
[367138862,1750668646696,-1205.15,0.00021917,2]
[367138863,1750668646705,-1607.5,0.00021917,2]
[367138864,1750668646714,-460.0,0.00021917,2]
[367138865,1750668646722,-460.0,0.00021917,2]
[367138866,1750668646735,-460.0,0.00021917,2]
[367138867,1750668646748,-1473.22,0.00021917,2]
[367138868,1750668646757,-477.01,0.00021917,2]
[367138870,1750668646766,-460.0,0.00021917,2]
[367138872,1750668646777,-460.0,0.00021917,2]
[367138874,1750668646786,-2095.51,0.00021917,2]
[367138876,1750668646796,-649.72,0.00021917,2]
[367138878,1750668646806,-460.0,0.00021917,2]
[367138880,1750668646816,-460.0,0.00021917,2]
[367138882,1750668646825,-460.0,0.00021917,2]
[367138884,1750668646834,-460.0,0.00021917,2]
[367138886,1750668646844,-460.0,0.00021917,2]
[367138888,1750668646854,-460.0,0.00021917,2]
[367138890,1750668646864,-3216.99,0.00021917,2]
[367138892,1750668646874,-460.0,0.00021917,2]
[367138894,1750668646883,-295.8749085,0.00021917,2]
[367139021,1750668648086,-179.39108719,0.00021679,2]
[367139023,1750668648096,-468.8050915,0.00021917,2]
[367139025,1750668648105,-460.0,0.00021917,2]
[367139027,1750668648114,-1044.6,0.00021917,2]
[367139029,1750668648124,-154.83000122,0.00021917,2]
[367139074,1750668648544,-0.79662655,0.00021917,2]
[367139109,1750668726799,150.0,0.00022709,30]
[367139113,1750668774705,-300.0,0.00021677,2]
[367139114,1750668774729,-846.53928378,0.00021779,3]
[367139115,1750668774755,-1301.28,0.00021907,10]
[367139116,1750668774780,-1084.4,0.00021907,10]
[367139117,1750668774806,-903.67,0.00021907,10]
[367139118,1750668774830,-4899.97007017,0.00021907,2]
[367139119,1750668774855,-300.0,0.00021916,2]
[367139120,1750668774879,-153.32597235,0.00021916,2]
[367139121,1750668774905,-500.0,0.00021916,2]
[367139122,1750668774931,-500.0,0.00021916,2]
[367139123,1750668774957,-500.0,0.00021916,2]
[367139124,1750668774982,-500.0,0.00021916,2]
[367139125,1750668775009,-500.0,0.00021916,2]
[367139126,1750668775035,-500.0,0.00021916,2]
[367139127,1750668775061,-154.19643161,0.00021916,2]
[367139128,1750668775086,-500.0,0.00021916,2]
[367139129,1750668775111,-500.0,0.00021916,2]
[367139130,1750668775137,-500.0,0.00021916,2]
[367139131,1750668775164,-500.0,0.00021916,2]
[367139132,1750668775189,-500.0,0.00021916,2]
[367139133,1750668775217,-500.0,0.00021916,2]
[367139134,1750668775241,-404.99871591,0.00021916,2]
[367139135,1750668775267,-500.0,0.00021916,2]
[367139136,1750668775293,-500.0,0.00021916,2]
[367139137,1750668775317,-500.0,0.00021916,2]
[367139138,1750668775341,-212.71056651,0.00021916,2]
[367139139,1750668775368,-558.07959536,0.00021916,2]
[367139140,1750668775392,-160.0,0.00021917,2]
[367139141,1750668775416,-846.53928378,0.00021917,2]
[367139142,1750668775440,-12553.69357174,0.00021917,2]
[367139143,1750668775464,-304.37337223,0.00021917,2]
[367139144,1750668775488,-460.0,0.00021917,2]
[367139145,1750668775511,-460.0,0.00021917,2]
[367139146,1750668775535,-460.0,0.00021917,2]
[367139147,1750668775560,-460.0,0.00021917,2]
[367139148,1750668775583,-499.85657197,0.00021917,2]
[367139149,1750668775607,-460.0,0.00021917,2]
[367139150,1750668775631,-460.0,0.00021917,2]
[367139151,1750668775655,-460.0,0.00021917,2]
[367139152,1750668775678,-686.82,0.00021917,2]
[367139153,1750668775702,-460.0,0.00021917,2]
[367139154,1750668775725,-460.21410208,0.00021917,2]
[367139155,1750668775748,-460.0,0.00021917,2]
[367139156,1750668775774,-473.53420988,0.00021917,2]
[367139157,1750668775799,-460.0,0.00021917,2]
[367139158,1750668775826,-6704.7,0.00021917,2]
[367139159,1750668775851,-460.0,0.00021917,2]
[367139160,1750668775874,-460.12921962,0.00021917,2]
[367139161,1750668775900,-748.53,0.00021917,2]
[367139162,1750668775924,-460.0,0.00021917,2]
[367139163,1750668775948,-460.0,0.00021917,2]
[367139164,1750668775972,-460.0,0.00021917,2]
[367139165,1750668775997,-460.0,0.00021917,2]
[367139166,1750668776021,-460.0,0.00021917,2]
[367139167,1750668776047,-460.0,0.00021917,2]
[367139168,1750668776071,-373.55744076,0.00021917,2]
[367139169,1750668776095,-828.69,0.00021917,2]
[367139170,1750668776119,-1746.54,0.00021917,2]
[367139171,1750668776311,-460.0,0.00021917,2]
[367139172,1750668776335,-837.85,0.00021917,2]
[367139173,1750668776360,-477.99,0.00021917,2]
[367139174,1750668776395,-460.0,0.00021917,2]
[367139175,1750668776420,-500.0,0.00021917,2]
[367139176,1750668776445,-460.0,0.00021917,2]
[367139177,1750668776469,-400.5505396,0.00021917,2]
[367139178,1750668776493,-460.0,0.00021917,2]
[367139179,1750668776517,-460.0,0.00021917,2]
[367139180,1750668776540,-460.0,0.00021917,2]
[367139181,1750668776564,-602.47,0.00021917,2]
[367139182,1750668776588,-460.0,0.00021917,2]
[367139183,1750668776612,-460.0,0.00021917,2]
[367139184,1750668776637,-460.0,0.00021917,2]
[367139185,1750668776661,-500.0,0.00021917,2]
[367139186,1750668776685,-5266.75,0.00021917,2]
[367139187,1750668776708,-460.0,0.00021917,2]
[367139188,1750668776732,-460.0,0.00021917,2]
[367139189,1750668776755,-1600.69,0.00021917,2]
[367139190,1750668776779,-458.40269902,0.00021917,2]
[367139191,1750668776805,-460.0,0.00021917,2]
[367139192,1750668776830,-460.0,0.00021917,2]
[367139193,1750668776855,-460.0,0.00021917,2]
[367139194,1750668776880,-151.0,0.00021917,2]
[367139195,1750668776905,-460.0,0.00021917,2]
[367139196,1750668776931,-173.508268,0.00021917,2]
[367139197,1750668776954,-1892.11,0.00021917,2]
[367139198,1750668776978,-460.0,0.00021917,2]
[367139199,1750668777002,-1319.73,0.00021917,2]
[367139200,1750668777025,-460.0,0.00021917,2]
[367139201,1750668777049,-460.0,0.00021917,2]
[367139202,1750668777072,-460.0,0.00021917,2]
[367139203,1750668777096,-7120.27,0.00021917,2]
[367139204,1750668777119,-460.0,0.00021917,2]
[367139205,1750668777143,-460.0,0.00021917,2]
[367139206,1750668777168,-460.0,0.00021917,2]
[367139207,1750668777192,-460.0,0.00021917,2]
[367139208,1750668777216,-460.0,0.00021917,2]
[367139209,1750668777240,-484.01,0.00021917,2]
[367139210,1750668777264,-460.0,0.00021917,2]
[367139211,1750668777288,-460.0,0.00021917,2]
[367139212,1750668777313,-460.0,0.00021917,2]
[367139213,1750668777336,-460.0,0.00021917,2]
[367139214,1750668777360,-460.0,0.00021917,2]
[367139215,1750668777384,-460.0,0.00021917,2]
[367139216,1750668777410,-460.0,0.00021917,2]
[367139217,1750668777433,-460.0,0.00021917,2]
[367139218,1750668777459,-1897.26,0.00021917,2]
[367139219,1750668777485,-6904.54,0.00021917,2]
[367139220,1750668777510,-1282.26,0.00021917,2]
[367139221,1750668777534,-460.0,0.00021917,2]
[367139222,1750668777558,-475.37,0.00021917,2]
[367139223,1750668777582,-460.0,0.00021917,2]
[367139224,1750668777605,-460.0,0.00021917,2]
[367139225,1750668777630,-2314.79,0.00021917,2]
[367139226,1750668777654,-460.0,0.00021917,2]
[367139227,1750668777678,-505.8,0.00021917,2]
[367139228,1750668777702,-460.0,0.00021917,2]
[367139229,1750668777726,-460.0,0.00021917,2]
[367139230,1750668777750,-505.2,0.00021917,2]
[367139231,1750668777774,-460.0,0.00021917,2]
[367139232,1750668777800,-460.0,0.00021917,2]
[367139233,1750668777825,-460.0,0.00021917,2]
[367139234,1750668777852,-460.0,0.00021917,2]
[367139235,1750668777877,-460.0,0.00021917,2]
[367139236,1750668777903,-460.0,0.00021917,2]
[367139237,1750668777930,-1054.32,0.00021917,2]
[367139238,1750668777956,-2097.28,0.00021917,2]
[367139239,1750668777984,-1100.47,0.00021917,2]
[367139240,1750668778011,-535.95,0.00021917,2]
[367139241,1750668778036,-460.0,0.00021917,2]
[367139242,1750668778063,-1074.69,0.00021917,2]
[367139243,1750668778088,-460.0,0.00021917,2]
[367139244,1750668778114,-652.07,0.00021917,2]
[367139245,1750668778139,-470.926858,0.00021917,2]
[367139246,1750668778166,-460.0,0.00021917,2]
[367139247,1750668778193,-460.0,0.00021917,2]
[367139248,1750668778218,-1231.09,0.00021917,2]
[367139249,1750668778247,-593.38698982,0.00021917,2]
[367139250,1750668778274,-151.0,0.00021917,2]
[367139251,1750668778298,-460.0,0.00021917,2]
[367139252,1750668778324,-151.0,0.00021917,2]
[367139253,1750668778350,-460.0,0.00021917,2]
[367139254,1750668778379,-460.0,0.00021917,2]
[367139255,1750668778407,-460.0,0.00021917,2]
[367139256,1750668778433,-470.926858,0.00021917,2]
[367139257,1750668778459,-460.0,0.00021917,2]
[367139258,1750668778485,-460.0,0.00021917,2]
[367139259,1750668778511,-460.0,0.00021917,2]
[367139260,1750668778536,-174.98054953,0.00021917,2]
[367139261,1750668778563,-460.0,0.00021917,2]
[367139262,1750668778591,-6500.87,0.00021917,2]
[367139263,1750668778617,-345.59173959,0.00021917,2]
[367139264,1750668778644,-460.0,0.00021917,2]
[367139265,1750668778669,-335.12601992,0.00021917,2]
[367139266,1750668778843,-750.52,0.00021917,2]
[367139267,1750668778871,-460.51869326,0.00021917,2]
[367139268,1750668778898,-814.26,0.00021917,2]
[367139269,1750668778924,-460.0,0.00021917,2]
[367139270,1750668778951,-460.0,0.00021917,2]
[367139271,1750668778977,-460.0,0.00021917,2]
[367139272,1750668779002,-460.0,0.00021917,2]
[367139273,1750668779027,-461.98026201,0.00021917,2]
[367139274,1750668779055,-1178.39,0.00021917,2]
[367139275,1750668779081,-460.0,0.00021917,2]
[367139276,1750668779105,-460.0,0.00021917,2]
[367139277,1750668779134,-500.0,0.00021917,2]
[367139278,1750668779158,-460.0,0.00021917,2]
[367139279,1750668779181,-460.0,0.00021917,2]
[367139280,1750668779205,-460.0,0.00021917,2]
[367139281,1750668779228,-460.0,0.00021917,2]
[367139282,1750668779251,-470.81705909,0.00021917,2]
[367139283,1750668779276,-200.0,0.00021917,10]
[367139284,1750668779303,-963.76,0.00021917,2]
[367139285,1750668779330,-200.0,0.00021917,10]
[367139286,1750668779354,-460.0,0.00021917,2]
[367139287,1750668779381,-200.0,0.00021917,10]
[367139288,1750668779405,-200.0,0.00021917,10]
[367139289,1750668779430,-460.0,0.00021917,2]
[367139291,1750668779454,-223.30599992,0.00021917,2]
[367139292,1750668779478,-1651.31,0.00021917,2]
[367139293,1750668779503,-151.0,0.00021917,2]
[367139294,1750668779527,-151.0,0.00021917,2]
[367139295,1750668779552,-151.0,0.00021917,2]
[367139296,1750668779578,-151.0,0.00021917,2]
[367139297,1750668779603,-460.0,0.00021917,2]
[367139298,1750668779628,-432.94515881,0.00021917,2]
[367139299,1750668779652,-460.0,0.00021917,2]
[367139300,1750668779678,-1168.55,0.00021917,2]
[367139301,1750668779702,-460.0,0.00021917,2]
[367139302,1750668779726,-460.0,0.00021917,2]
[367139303,1750668779750,-810.72,0.00021917,2]
[367139305,1750668779779,-460.0,0.00021917,2]
[367139306,1750668779808,-506.13,0.00021917,2]
[367139307,1750668779832,-460.0,0.00021917,2]
[367139308,1750668779858,-640.46,0.00021917,2]
[367139309,1750668779883,-460.0,0.00021917,2]
[367139310,1750668779906,-575.26,0.00021917,2]
[367139311,1750668779930,-460.0,0.00021917,2]
[367139312,1750668779953,-1312.86,0.00021917,2]
[367139313,1750668779978,-460.0,0.00021917,2]
[367139314,1750668780002,-460.0,0.00021917,2]
[367139315,1750668780026,-460.0,0.00021917,2]
[367139316,1750668780052,-460.0,0.00021917,2]
[367139317,1750668780077,-415.57265168,0.00021917,2]
[367139318,1750668780103,-460.0,0.00021917,2]
[367139319,1750668780127,-460.78625412,0.00021917,2]
[367139320,1750668780152,-584.29,0.00021917,2]
[367139321,1750668780176,-460.0,0.00021917,2]
[367139322,1750668780200,-404.62798394,0.00021917,2]
[367139323,1750668780224,-460.0,0.00021917,2]
[367139324,1750668780249,-460.0,0.00021917,2]
[367139325,1750668780274,-824.55,0.00021917,2]
[367139326,1750668780299,-460.0,0.00021917,2]
[367139327,1750668780324,-460.0,0.00021917,2]
[367139328,1750668780349,-460.0,0.00021917,2]
[367139329,1750668780374,-696.35,0.00021917,2]
[367139330,1750668780398,-508.59372181,0.00021917,2]
[367139331,1750668780422,-1432.01,0.00021917,2]
[367139332,1750668780445,-460.0,0.00021917,2]
[367139333,1750668780468,-541.43,0.00021917,2]
[367139334,1750668780492,-460.0,0.00021917,2]
[367139335,1750668780516,-460.0,0.00021917,2]
[367139336,1750668780539,-460.0,0.00021917,2]
[367139337,1750668780563,-1134.45,0.00021917,2]
[367139338,1750668780593,-460.0,0.00021917,2]
[367139339,1750668780618,-2480.192483,0.00021917,2]
[367139340,1750668780642,-836.70095952,0.00021917,2]
[367139341,1750668780666,-1318.97,0.00021917,2]
[367139342,1750668780689,-160.0,0.00021917,2]
[367139343,1750668780713,-460.0,0.00021917,2]
[367139344,1750668780737,-460.0,0.00021917,2]
[367139345,1750668780761,-2480.192483,0.00021917,2]
[367139346,1750668780787,-460.0,0.00021917,2]
[367139347,1750668780814,-151.0,0.00021917,2]
[367139348,1750668780838,-288.756291,0.00021917,2]
[367139349,1750668780862,-460.0,0.00021917,2]
[367139350,1750668780888,-460.0,0.00021917,2]
[367139351,1750668780911,-1160.72,0.00021917,2]
[367139352,1750668780936,-8624.4,0.00021917,2]
[367139353,1750668780961,-530.06,0.00021917,2]
[367139354,1750668780985,-230.18214666,0.00021917,2]
[367139355,1750668781009,-460.0,0.00021917,2]
[367139356,1750668781033,-460.0,0.00021917,2]
[367139357,1750668781057,-213.63163053,0.00021917,2]
[367139358,1750668781081,-460.0,0.00021917,2]
[367139359,1750668781105,-727.12,0.00021917,2]
[367139360,1750668781128,-460.0,0.00021917,2]
[367139361,1750668781153,-460.0,0.00021917,2]
[367139362,1750668781177,-460.0,0.00021917,2]
[367139363,1750668781350,-460.0,0.00021917,2]
[367139364,1750668781380,-672.09,0.00021917,2]
[367139365,1750668781404,-425.08510397,0.00021917,2]
[367139366,1750668781429,-460.0,0.00021917,2]
[367139367,1750668781453,-460.0,0.00021917,2]
[367139368,1750668781478,-3057.12,0.00021917,2]
[367139369,1750668781504,-460.0,0.00021917,2]
[367139370,1750668781528,-460.0,0.00021917,2]
[367139371,1750668781552,-460.0,0.00021917,2]
[367139372,1750668781578,-3812.56,0.00021917,2]
[367139373,1750668781602,-414.49394333,0.00021917,2]
[367139374,1750668781626,-460.0,0.00021917,2]
[367139375,1750668781650,-443.42320512,0.00021917,2]
[367139376,1750668781675,-460.0,0.00021917,2]
[367139377,1750668781699,-460.0,0.00021917,2]
[367139378,1750668781724,-460.0,0.00021917,2]
[367139379,1750668781748,-460.0,0.00021917,2]
[367139380,1750668781773,-460.0,0.00021917,2]
[367139381,1750668781798,-460.0,0.00021917,2]
[367139382,1750668781826,-460.0,0.00021917,2]
[367139383,1750668781849,-627.42,0.00021917,2]
[367139384,1750668781875,-610.84,0.00021917,2]
[367139385,1750668781900,-500.0,0.00021917,2]
[367139386,1750668781924,-460.0,0.00021917,2]
[367139387,1750668781949,-500.0,0.00021917,2]
[367139388,1750668781974,-796.2,0.00021917,2]
[367139389,1750668781999,-499.96,0.00021917,2]
[367139390,1750668782023,-401.46287726,0.00021917,2]
[367139391,1750668782048,-151.0,0.00021917,2]
[367139392,1750668782073,-151.0,0.00021917,2]
[367139393,1750668782096,-460.0,0.00021917,2]
[367139394,1750668782119,-460.0,0.00021917,2]
[367139395,1750668782144,-2473.62,0.00021917,2]
[367139396,1750668782167,-151.0,0.00021917,2]
[367139397,1750668782191,-460.0,0.00021917,2]
[367139398,1750668782215,-151.0,0.00021917,2]
[367139399,1750668782239,-198.0,0.00021917,2]
[367139400,1750668782265,-1430.76,0.00021917,2]
[367139401,1750668782289,-892.93,0.00021917,2]
[367139402,1750668782313,-151.0,0.00021917,2]
[367139403,1750668782338,-460.0,0.00021917,2]
[367139404,1750668782361,-460.0,0.00021917,2]
[367139405,1750668782385,-444.12479345,0.00021917,2]
[367139406,1750668782409,-460.0,0.00021917,2]
[367139407,1750668782432,-151.45049726,0.00021917,2]
[367139408,1750668782455,-460.0,0.00021917,2]
[367139409,1750668782479,-151.0,0.00021917,2]
[367139410,1750668782502,-478.89,0.00021917,2]
[367139411,1750668782525,-151.0,0.00021917,2]
[367139412,1750668782550,-460.0,0.00021917,2]
[367139413,1750668782574,-216.26544804,0.00021917,2]
[367139414,1750668782599,-460.0,0.00021917,2]
[367139415,1750668782626,-460.0,0.00021917,2]
[367139416,1750668782651,-460.0,0.00021917,2]
[367139417,1750668782676,-5393.99,0.00021917,2]
[367139418,1750668782702,-151.0,0.00021917,2]
[367139419,1750668782727,-513.71,0.00021917,2]
[367139420,1750668782753,-460.0,0.00021917,2]
[367139421,1750668782778,-199.55059891,0.00021917,2]
[367139422,1750668782805,-460.0,0.00021917,2]
[367139423,1750668782829,-460.0,0.00021917,2]
[367139424,1750668782853,-460.0,0.00021917,2]
[367139425,1750668782877,-1427.01,0.00021917,2]
[367139426,1750668782902,-460.0,0.00021917,2]
[367139427,1750668782927,-1585.98,0.00021917,2]
[367139428,1750668782951,-460.0,0.00021917,2]
[367139429,1750668782975,-460.0,0.00021917,2]
[367139430,1750668782998,-460.0,0.00021917,2]
[367139431,1750668783023,-460.0,0.00021917,2]
[367139432,1750668783048,-492.34,0.00021917,2]
[367139433,1750668783075,-3023.47,0.00021917,2]
[367139434,1750668783099,-464.67964733,0.00021917,2]
[367139435,1750668783124,-460.0,0.00021917,2]
[367139436,1750668783149,-151.0,0.00021918,2]
[367139437,1750668783175,-400.0,0.00021918,7]
[367139438,1750668783201,-150.0,0.00021918,2]
[367139439,1750668783225,-151.0,0.00021944,2]
[367139440,1750668783255,-151.0,0.00021944,2]
[367139441,1750668783281,-151.0,0.00021944,2]
[367139442,1750668783306,-209.3546536,0.00021944,2]
[367139443,1750668783331,-151.0,0.00021944,2]
[367139444,1750668783357,-151.0,0.00021944,2]
[367139445,1750668783382,-151.0,0.00021944,2]
[367139446,1750668783408,-272.34035928,0.00021944,2]
[367139447,1750668783432,-604.0,0.00021944,2]
[367139448,1750668783458,-206.64743645,0.00021944,2]
[367139449,1750668783483,-500.0,0.00021944,2]
[367139450,1750668783510,-500.0,0.00021944,2]
[367139451,1750668783535,-500.0,0.00021944,2]
[367139452,1750668783560,-151.0,0.00021944,2]
[367139453,1750668783585,-151.0,0.00021944,2]
[367139454,1750668783610,-151.0,0.00021944,2]
[367139455,1750668783634,-198.0,0.00021944,2]
[367139456,1750668783659,-151.0,0.00021944,2]
[367139457,1750668783685,-2748.93194997,0.0002195,2]
[367139458,1750668783710,-151.0,0.00021972,2]
[367139459,1750668783890,-151.0,0.00021972,2]
[367139460,1750668783917,-151.0,0.00021972,2]
[367139461,1750668783942,-151.0,0.00021972,2]
[367139462,1750668783967,-500.0,0.00021972,2]
[367139463,1750668783992,-500.0,0.00021972,2]
[367139464,1750668784017,-152.04280326,0.00021972,2]
[367139465,1750668784041,-151.0,0.00021972,2]
[367139466,1750668784064,-198.0,0.00021972,2]
[367139467,1750668784088,-151.0,0.00021972,2]
[367139468,1750668784117,-198.0,0.00021972,2]
[367139469,1750668784143,-500.0,0.00021973,2]
[367139470,1750668784170,-500.72944794,0.00021973,2]
[367139471,1750668784197,-500.0,0.00021973,2]
[367139472,1750668784222,-500.0,0.00021973,2]
[367139473,1750668784247,-500.0,0.00021973,2]
[367139474,1750668784272,-500.0,0.00021973,2]
[367139475,1750668784298,-500.0,0.00021973,2]
[367139476,1750668784322,-500.0,0.00021973,2]
[367139477,1750668784347,-502.55035468,0.00021973,2]
[367139478,1750668784372,-500.0,0.00021973,2]
[367139479,1750668784403,-500.0,0.00021973,2]
[367139480,1750668784428,-500.0,0.00021973,2]
[367139481,1750668784452,-500.0,0.00021973,2]
[367139482,1750668784476,-211.19422828,0.00021973,2]
[367139483,1750668784501,-500.0,0.00021973,2]
[367139484,1750668784525,-399.34030724,0.00021973,2]
[367139485,1750668784549,-500.0,0.00021973,2]
[367139486,1750668784574,-500.0,0.00021973,2]
[367139487,1750668784598,-500.0,0.00021973,2]
[367139488,1750668784622,-500.0,0.00021973,2]
[367139489,1750668784648,-500.0,0.00021973,2]
[367139490,1750668784673,-500.0,0.00021973,2]
[367139491,1750668784697,-500.0,0.00021973,2]
[367139492,1750668784721,-500.0,0.00021973,2]
[367139493,1750668784745,-500.0,0.00021973,2]
[367139494,1750668784769,-366.36247253,0.00021973,2]
[367139495,1750668784792,-500.0,0.00021973,2]
[367139496,1750668784822,-211.08068204,0.00021973,2]
[367139498,1750668784846,-500.0,0.00021973,2]
[367139499,1750668784871,-500.0,0.00021973,2]
[367139500,1750668784897,-500.0,0.00021973,2]
[367139501,1750668784920,-167.62540763,0.00021973,2]
[367139502,1750668784944,-500.0,0.00021973,2]
[367139503,1750668784967,-500.0,0.00021973,2]
[367139504,1750668784991,-227.701216,0.00021973,7]
[367139505,1750668785017,-151.0,0.00021973,7]
[367139506,1750668785041,-151.0,0.00021973,7]
[367139507,1750668785065,-198.412335,0.00021973,7]
[367139508,1750668785088,-198.412335,0.00021973,7]